bitfinex/quotes_ETHUSD_20250622
["timestamp","ask_amount","ask_price","bid_price","bid_amount"]
[1750584937492,10.0,2262.1,2261.4,0.04421889]
[1750584937801,8.306,2262.0,2261.2,0.7987]
[1750584938018,9.63999471,2262.0,2261.2,0.7987]
[1750584938191,9.63999471,2262.0,2261.8,4.42111395]
[1750584938515,10.0,2261.8,2261.7,4.4213094]
[1750584940096,10.0,2261.8,2261.4,4.42190315]
[1750584940495,10.0,2261.6,2261.4,4.42190315]
[1750584940710,8.287,2261.5,2261.2,4.42233327]
[1750584940927,8.287,2261.4,2261.2,4.42233327]
[1750584941222,8.283,2261.3,2261.1,4.42253797]
[1750584941425,8.283,2261.2,2261.1,4.42253797]
[1750584944569,8.283,2261.2,2260.9,4.42298655]
[1750584944856,8.283,2261.2,2260.5,0.7622]
[1750584945139,8.283,2261.2,2260.6,4.42358151]
[1750584945140,19.67608288,2261.1,2260.6,4.42358151]
[1750584945299,19.67608288,2261.1,2260.5,4.4237508]
[1750584945699,19.67608288,2261.1,2259.7,5.18751736]
[1750584945700,8.85628288,2260.8,2259.7,0.7622]
[1750584945933,10.795,2260.7,2259.8,1.07622]
[1750584946135,0.8198,2260.4,2259.9,4.42489262]
[1750584946431,8.255,2260.3,2259.9,4.42489262]
[1750584947052,8.255,2260.3,2259.7,0.7622]
[1750584947223,8.255,2260.3,2259.7,4.42523971]
[1750584947527,8.255,2260.3,2259.8,4.42516395]
[1750584947834,8.255,2260.3,2260.1,4.42458298]
[1750584948135,8.241,2260.3,2260.2,4.42438722]
[1750584948354,8.241,2260.3,2259.6,10.0]
[1750584948560,8.241,2260.3,2260.1,4.42448354]
[1750584948748,8.241,2260.3,2259.5,0.55]
[1750584948945,8.241,2260.3,2260.2,4.42438722]
[1750584949142,8.24,2260.3,2260.2,4.42438722]
[1750584952090,8.24,2260.3,2260.0,4.42471777]
[1750584952091,8.24,2260.3,2260.1,4.42443976]
[1750584953160,10.0,2260.4,2260.2,4.42438722]
[1750584953343,10.625,2260.6,2260.5,4.42380004]
[1750584953537,18.839,2260.6,2260.5,4.42380004]
[1750584953863,10.0,2260.5,2260.4,4.4239113]
[1750584954229,10.753,2260.6,2260.5,4.42380004]
[1750584954649,10.753,2260.6,2259.5,4.42575791]
[1750584954859,10.0,2260.5,2260.1,4.42457638]
[1750584955166,23.28008298,2260.5,2259.9,4.42483845]
[1750584955473,18.85628288,2260.5,2259.9,4.42483845]
[1750584955666,10.0,2260.5,2259.7,4.4252659]
[1750584955831,10.0,2260.5,2260.1,4.4244798]
[1750584956172,10.0,2260.5,2260.3,4.42417654]
[1750584956341,18.193,2260.4,2260.3,4.42419147]
[1750584957375,18.193,2260.4,2260.2,4.42435355]
[1750584957376,20.14775769,2260.4,2259.2,0.45216274]
[1750584957531,10.0,2259.9,2259.6,4.42545457]
[1750584957731,18.191,2259.8,2259.7,4.42536619]
[1750584958557,10.0,2259.8,2259.7,4.42536619]
[1750584958752,18.214,2259.8,2259.7,4.42536619]
[1750584959463,18.214,2259.8,2259.6,4.42548857]
[1750584959666,18.214,2259.8,2259.5,4.42566598]
[1750584960044,18.214,2259.8,2259.2,4.42629167]
[1750584960236,18.214,2259.8,2259.5,4.42560203]
[1750584960569,18.214,2259.8,2259.7,4.42536619]
[1750584961373,8.193,2259.8,2259.7,4.42536619]
[1750584962039,8.193,2259.8,2259.7,5.31045556]
[1750584962238,10.0,2260.2,2260.0,4.42464935]
[1750584962439,0.7734,2260.3,2260.1,4.42447115]
[1750584962761,8.85628288,2260.5,2260.2,4.42429238]
[1750584962961,10.0,2260.4,2260.2,4.42429238]
[1750584963157,10.0,2260.4,2260.1,4.42453349]
[1750584963379,0.7923,2260.6,2260.4,4.42399575]
[1750584963669,2.54,2260.7,2260.6,4.42360435]
[1750584963873,10.0,2260.5,2260.2,4.42426446]
[1750584964071,8.176,2260.4,2260.3,4.42419147]
[1750584965669,8.176,2260.4,2260.2,4.42430746]
[1750584965839,10.779,2260.4,2260.0,4.42465136]
[1750584966685,10.779,2260.4,2260.0,4.42476523]
[1750584966886,10.779,2260.4,2259.8,4.42503864]
[1750584967093,10.779,2260.4,2259.6,0.8126]
[1750584967094,10.0,2260.3,2259.6,0.85684959]
[1750584967299,10.0,2260.3,2260.2,4.42438722]
[1750584967469,0.7854,2260.7,2260.2,4.42438722]
[1750584967668,0.7854,2260.7,2259.3,4.42602262]
[1750584967669,10.0,2260.0,2259.3,4.42602262]
[1750584967869,10.0,2260.0,2258.9,4.42688437]
[1750584967870,19.45228288,2259.9,2259.6,4.42546379]
[1750584968175,10.0,2259.7,2259.5,4.42557331]
[1750584968368,18.223,2259.6,2259.5,4.42557331]
[1750584968571,18.223,2259.6,2258.9,4.42693346]
[1750584968762,18.223,2259.6,2259.3,4.42598334]
[1750584968961,18.223,2259.6,2259.4,4.42589465]
[1750584969210,18.223,2259.6,2258.9,5.19284681]
[1750584969400,18.223,2259.6,2259.2,4.42617899]
[1750584969691,18.223,2259.6,2259.4,4.4258079]
[1750584969901,18.223,2259.6,2259.3,4.42609645]
[1750584970064,18.223,2259.6,2258.8,0.7852]
[1750584970065,18.85628288,2259.5,2258.8,0.7852]
[1750584970260,9.66978288,2258.9,2258.4,4.427841]
[1750584970462,8.214,2258.8,2258.1,4.42847909]
[1750584970690,10.0,2258.7,2258.1,4.42850183]
[1750584970891,8.213,2258.6,2258.4,4.42777327]
[1750584971086,8.213,2258.6,2258.5,4.42771751]
[1750584971903,8.208,2258.6,2258.3,4.42804283]
[1750584972274,8.208,2258.6,2257.7,0.7681]
[1750584972480,17.06428288,2258.6,2257.7,0.7681]
[1750584972706,17.06428288,2258.6,2258.3,4.42795195]
[1750584973186,18.208,2258.6,2258.5,4.42771751]
[1750584973508,18.208,2258.6,2257.7,0.7681]
[1750584973509,8.208,2258.6,2257.8,4.42909026]
[1750584973690,8.208,2258.6,2257.8,5.94880929]
[1750584973884,10.0,2258.5,2258.2,4.42821497]
[1750584974200,8.192,2258.4,2258.1,4.4284514]
[1750584974507,8.192,2258.4,2258.1,4.42849752]
[1750584974800,18.192,2258.4,2258.3,4.42810963]
[1750584975196,18.192,2258.4,2258.2,4.4282317]
[1750584975504,18.192,2258.4,2258.3,4.42810963]
[1750584975664,10.0,2258.4,2258.3,4.42810963]
[1750584975862,18.184,2258.4,2258.3,4.42810963]
[1750584976871,18.184,2258.4,2258.2,4.42814204]
[1750584977065,18.184,2258.4,2258.1,4.42847474]
[1750584977378,0.7863,2258.2,2257.9,4.42886985]
[1750584977565,0.7863,2258.2,2257.3,0.774]
[1750584977566,8.176,2258.1,2258.0,4.42869796]
[1750584978612,8.176,2258.1,2257.9,4.4287964]
[1750584979065,8.176,2258.1,2258.0,4.42869796]
[1750584979878,8.85628288,2258.4,2258.1,4.42850183]
[1750584980083,8.155,2258.3,2258.2,4.42830573]
[1750584980297,18.155,2258.3,2258.1,4.42844273]
[1750584980492,10.0,2258.2,2258.1,4.42844273]
[1750584980692,10.0,2258.2,2258.0,4.42853799]
[1750584980897,8.155,2258.1,2258.0,4.42853799]
[1750584981585,17.01128288,2258.1,2257.7,4.4291098]
[1750584981897,10.7988,2258.0,2257.5,4.42962955]
[1750584982083,8.142,2257.9,2257.7,4.42918841]
[1750584982283,8.142,2257.9,2257.6,4.42942072]
[1750584982498,8.142,2257.9,2257.8,4.42909026]
[1750584983692,8.142,2257.9,2257.7,4.42926354]
[1750584984026,10.0,2258.0,2257.9,4.42873253]
[1750584984232,18.131,2258.0,2257.9,4.42873253]
[1750584985217,10.7988,2258.3,2258.2,4.42830573]
[1750584985420,18.9218,2258.3,2258.2,4.42830573]
[1750584987016,18.9218,2258.3,2257.4,4.42971884]
[1750584987222,19.44865752,2258.3,2258.2,4.42830573]
[1750584987527,18.9218,2258.3,2258.1,4.42846377]
[1750584987826,18.9218,2258.3,2258.0,4.4286089]
[1750584988124,18.9218,2258.3,2258.1,4.42846718]
[1750584988300,18.9218,2258.3,2258.2,4.42830573]
[1750584988693,18.9218,2258.3,2258.1,4.42839562]
[1750584988897,18.9218,2258.3,2258.2,4.42830573]
[1750584990996,0.7532,2259.3,2258.2,0.88567689]
[1750584991212,8.087,2259.2,2258.3,4.42810963]
[1750584991513,8.85628288,2259.0,2258.6,4.42751985]
[1750584991695,8.086,2258.9,2258.6,4.42750905]
[1750584991900,8.086,2258.9,2258.7,4.42728849]
[1750584992250,8.086,2258.9,2258.6,4.4274223]
[1750584992443,8.086,2258.9,2258.7,4.42730058]
[1750584992751,8.086,2258.9,2258.3,4.42810963]
[1750584992752,10.0,2258.8,2258.6,4.42733773]
[1750584992959,8.082,2258.7,2258.6,4.42733773]
[1750584993486,8.8352,2258.7,2257.9,0.55]
[1750584993655,8.8352,2258.7,2258.5,4.4275703]
[1750584993859,8.8352,2258.7,2258.6,4.42752147]
[1750584995262,8.082,2258.7,2258.6,4.42752147]
[1750584999368,11.40112663,2259.2,2259.1,4.42654154]
[1750584999570,13.78212663,2259.5,2259.3,4.42605598]
[1750584999754,18.03,2259.4,2259.2,4.42632632]
[1750584999948,18.03,2259.4,2259.2,4.42616742]
[1750585000470,18.03,2259.4,2259.1,4.42653625]
[1750585000672,18.03,2259.4,2259.2,4.42633471]
[1750585001181,13.78212663,2259.5,2259.2,4.42633471]
[1750585001182,21.40112663,2259.5,2259.4,4.42595379]
[1750585001361,29.42112663,2259.5,2259.0,4.42654813]
[1750585001563,32.93292198,2259.5,2259.1,4.42650075]
[1750585001763,32.93292198,2259.5,2259.2,4.42624349]
[1750585001966,29.42112663,2259.5,2259.2,4.42624349]
[1750585002160,29.42112663,2259.5,2259.3,4.42611923]
[1750585002474,0.8212,2260.0,2259.8,4.42513436]
[1750585002778,8.008,2260.0,2259.7,4.42523847]
[1750585002940,10.0,2259.9,2259.2,0.7657]
[1750585003137,0.8212,2259.2,2258.0,0.7657]
[1750585003351,26.6498481,2258.6,2257.8,4.42901597]
[1750585003539,10.0,2258.5,2258.2,4.42819127]
[1750585003767,32.69132663,2258.6,2257.6,5.25755145]
[1750585003768,21.40112663,2258.3,2257.6,0.8281]
[1750585003950,21.40112663,2258.3,2257.2,0.8281]
[1750585003951,10.0,2257.9,2257.2,0.8281]
[1750585004144,10.0,2257.6,2257.2,4.43015744]
[1750585004469,10.0,2257.6,2255.9,4.0821]
[1750585004470,8.084,2257.5,2257.3,4.42992153]
[1750585004673,3.1436,2257.9,2257.6,4.42947849]
[1750585004897,4.87182859,2258.4,2257.4,0.7788]
[1750585004898,0.7828,2258.4,2257.4,0.7788]
[1750585005084,10.0,2258.1,2257.4,0.7788]
[1750585005284,8.114,2258.0,2257.9,4.4288941]
[1750585005461,18.114,2258.0,2257.9,4.4288941]
[1750585005905,0.7828,2257.8,2256.1,0.7788]
[1750585006195,0.7828,2257.8,2256.6,4.43128551]
[1750585006196,10.0,2256.9,2256.6,4.43128551]
[1750585006415,18.179,2256.8,2256.7,4.43124916]
[1750585006581,8.179,2256.8,2256.7,4.43124916]
[1750585006774,8.179,2257.1,2257.0,4.43054217]
[1750585006981,1.07828,2257.7,2256.8,4.43105281]
[1750585006982,11.07828,2257.7,2256.8,4.43105281]
[1750585007206,8.18,2257.6,2257.2,4.43015096]
[1750585007367,8.18,2257.6,2256.8,4.95201429]
[1750585007873,8.18,2257.6,2257.1,4.43026927]
[1750585008078,8.18,2257.6,2257.2,4.43023472]
[1750585008275,8.18,2257.6,2257.3,4.4300651]
[1750585008491,8.18,2257.6,2257.2,4.43020624]
[1750585009269,8.18,2257.6,2257.3,4.4300435]
[1750585009715,8.18,2257.6,2257.4,4.42973902]
[1750585010209,8.18,2257.6,2257.1,4.43028677]
[1750585011514,8.18,2257.6,2257.2,4.43026717]
[1750585011800,8.18,2257.6,2256.8,0.52098528]
[1750585012002,10.0,2257.4,2257.0,4.43052903]
[1750585012167,18.147,2257.3,2257.2,4.43026758]
[1750585012905,18.147,2257.3,2257.1,4.43038972]
[1750585013109,18.147,2257.3,2256.4,5.22543209]
[1750585013293,10.0,2257.3,2256.7,4.43119182]
[1750585013608,8.145,2257.2,2257.1,4.43046386]
[1750585014207,10.0,2257.3,2257.1,4.43046386]
[1750585014509,0.4439,2259.8,2257.1,4.43046386]
[1750585014510,0.8123,2259.4,2259.2,4.42619294]
[1750585014708,0.36989248,2259.3,2259.1,4.42639962]
[1750585014875,1.31001173,2259.3,2259.2,4.4263456]
[1750585015073,8.60489248,2259.3,2259.1,4.42647421]
[1750585015403,8.60489248,2259.3,2259.2,4.4263456]
[1750585015906,0.36989248,2259.3,2259.2,4.4263456]
[1750585017765,0.36989248,2259.3,2259.1,4.42652082]
[1750585017766,0.7865,2260.6,2260.4,4.42382451]
[1750585017972,0.7865,2260.6,2259.5,2.471]
[1750585018186,0.45167871,2260.8,2260.1,0.75]
[1750585018469,0.7865,2261.0,2260.3,4.42414145]
[1750585018803,8.89134023,2261.6,2260.2,0.55]
[1750585018804,8.218,2261.1,2260.2,0.55]
[1750585019107,8.218,2261.0,2260.9,4.42301738]
[1750585019281,10.0,2261.0,2260.9,4.42301738]
[1750585020176,10.0,2261.0,2260.7,4.42337589]
[1750585020428,8.217,2261.1,2260.4,4.42387948]
[1750585020429,0.7977,2260.8,2260.4,4.42387948]
[1750585020585,8.206,2260.7,2260.4,4.42387948]
[1750585020999,8.206,2260.7,2259.8,4.42507077]
[1750585021604,8.206,2260.7,2260.2,4.42425258]
[1750585021821,8.206,2260.7,2260.3,4.42418866]
[1750585022028,10.90037,2260.6,2260.2,4.42434233]
[1750585022594,10.90037,2260.6,2260.3,4.42418775]
[1750585023079,10.90037,2260.6,2259.8,4.42517036]
[1750585023080,10.90037,2260.6,2260.2,4.42430406]
[1750585023280,10.90037,2260.6,2259.9,4.42478209]
[1750585023490,8.194,2260.6,2260.5,4.42380004]
[1750585023715,10.0,2260.7,2260.4,4.42389913]
[1750585024019,2.47,2261.4,2260.4,4.42389913]
[1750585024020,2.47,2261.4,2261.1,4.42262615]
[1750585024307,2.47,2261.4,2260.8,4.42321302]
[1750585024308,8.189,2261.3,2261.2,4.42239909]
[1750585025213,0.7977,2261.5,2261.4,4.42203944]
[1750585025374,8.9757,2261.5,2260.7,4.42340867]
[1750585025581,10.0,2261.4,2261.3,4.42223499]
[1750585025892,0.7977,2261.7,2261.5,4.42175498]
[1750585026215,18.178,2261.6,2261.5,4.42175498]
[1750585026410,8.178,2261.6,2261.5,4.42175498]
[1750585026708,8.178,2261.6,2261.0,4.42282176]
[1750585026910,0.7977,2261.7,2261.6,4.42164839]
[1750585027120,8.172,2261.7,2261.6,4.42164839]
[1750585028079,8.172,2261.7,2261.5,4.42177178]
[1750585029418,8.172,2261.7,2261.5,4.4217544]
[1750585029618,8.172,2261.7,2261.3,4.42216174]
[1750585029619,2.47,2262.2,2261.4,4.42203944]
[1750585029827,2.47,2262.2,2261.6,4.42164839]
[1750585029828,8.153,2262.2,2261.6,4.42164839]
[1750585030339,8.153,2262.2,2262.0,4.42072148]
[1750585030742,8.153,2262.2,2261.0,4.86509348]
[1750585030743,10.0,2262.0,2261.0,0.44228218]
[1750585030946,0.784,2261.4,2260.6,0.8252]
[1750585031100,8.151,2261.3,2261.2,4.42241052]
[1750585031299,10.0,2261.2,2260.6,5.24876036]
[1750585031602,8.151,2261.3,2260.9,4.42289871]
[1750585031904,10.0,2261.2,2260.9,4.42299414]
[1750585032250,10.0,2261.2,2260.8,4.42313728]
[1750585032897,10.0,2261.2,2260.4,4.42394307]
[1750585033127,10.0,2261.2,2260.8,4.42309581]
[1750585033717,10.0,2261.2,2260.7,4.42331843]
[1750585034111,10.0,2261.2,2260.9,4.42300004]
[1750585034423,10.0,2261.2,2260.9,0.36922579]
[1750585034923,10.0,2261.2,2261.0,0.36920946]
[1750585036101,10.0,2261.2,2260.7,4.42330271]
[1750585038817,0.8025,2261.1,2260.5,4.42364591]
[1750585039138,8.101,2261.0,2260.5,4.42364591]
[1750585040230,8.101,2261.0,2260.6,4.42356071]
[1750585041563,8.101,2261.0,2260.7,4.42338478]
[1750585042040,8.101,2261.0,2260.4,4.42389619]
[1750585042243,8.101,2261.0,2260.8,4.42305739]
[1750585042458,8.101,2261.0,2260.7,4.42330826]
[1750585043248,8.101,2261.0,2260.8,4.42319747]
[1750585043753,0.7629,2261.5,2260.4,4.42398918]
[1750585043958,10.0,2261.2,2261.1,4.42262615]
[1750585044251,8.062,2261.7,2261.1,4.42262615]
[1750585044550,8.062,2261.7,2261.6,4.42164839]
[1750585045260,8.062,2261.7,2261.5,4.42174583]
[1750585046022,10.0,2261.5,2261.0,4.42269932]
[1750585046216,8.05,2261.4,2260.9,4.42299516]
[1750585046464,8.05,2261.4,2260.5,0.7876]
[1750585046617,8.05,2261.4,2260.9,4.42289281]
[1750585047058,8.05,2261.4,2260.8,4.4231111]
[1750585047355,12.24718722,2261.3,2260.8,4.42311498]
[1750585047559,1.5691,2261.6,2261.4,4.42193914]
[1750585047758,0.7629,2262.0,2261.0,4.42282176]
[1750585047942,18.063,2261.7,2261.6,4.42164839]
[1750585048148,0.7629,2262.0,2261.8,4.42120893]
[1750585048351,2.60819679,2262.3,2262.2,4.42047564]
[1750585048352,0.23119679,2262.3,2262.2,4.42047564]
[1750585048572,0.23119679,2262.3,2261.4,3.1646]
[1750585048573,0.7836,2263.0,2262.1,2.377]
[1750585048849,0.7836,2263.0,2262.3,4.42028024]
[1750585049019,0.23108928,2262.9,2262.8,4.41927652]
[1750585049416,0.7836,2263.6,2262.9,4.4189352]
[1750585049657,0.23104849,2263.5,2263.4,4.41813201]
[1750585049876,0.23104849,2263.5,2263.4,4.46231299]
[1750585050078,0.7836,2264.2,2264.1,4.41657206]
[1750585050383,0.2230228,2264.5,2264.0,4.41690576]
[1750585050384,8.072,2264.3,2264.0,4.41690576]
[1750585050588,8.072,2264.3,2264.1,4.41673131]
[1750585050767,18.072,2264.3,2264.2,4.41657097]
[1750585051076,18.07,2264.3,2264.0,4.41690576]
[1750585051285,1.0066228,2264.5,2263.5,4.41793682]
[1750585051450,1.0066228,2264.5,2264.3,4.41624447]
[1750585051782,11.0066228,2264.5,2264.3,4.41628192]
[1750585052077,1.0066228,2264.5,2264.1,4.41670979]
[1750585052281,11.0066228,2264.5,2264.2,4.41657065]
[1750585052476,1.0066228,2264.5,2264.2,4.41657065]
[1750585052678,1.91368508,2264.5,2264.1,4.41674193]
[1750585052891,11.91368508,2264.5,2264.1,4.41674193]
[1750585053058,11.91368508,2264.5,2264.2,4.41656091]
[1750585053254,11.91368508,2264.5,2263.7,2.377]
[1750585053443,11.91368508,2264.5,2264.3,4.41636525]
[1750585053648,11.91368508,2264.5,2264.2,4.41649864]
[1750585054155,11.91368508,2264.5,2263.8,4.41726418]
[1750585054363,11.91368508,2264.5,2263.8,4.41735135]
[1750585054561,11.91368508,2264.5,2264.2,4.41638966]
[1750585054976,11.91368508,2264.5,2264.1,4.41671385]
[1750585055264,11.91368508,2264.5,2264.2,4.41654054]
[1750585055463,10.0,2264.3,2264.2,4.41654054]
[1750585055888,10.0,2264.3,2263.3,18.035]
[1750585055889,0.7782,2264.1,2263.0,0.8028]
[1750585056100,18.89134023,2263.4,2263.3,4.41832722]
[1750585056397,10.0,2263.4,2263.3,4.78716149]
[1750585057911,5.19501669,2264.1,2263.3,0.36883427]
[1750585057912,8.89134023,2263.8,2263.3,0.36883427]
[1750585058081,18.89134023,2263.8,2263.7,4.41740244]
[1750585058390,26.94134023,2263.8,2263.7,4.41740244]
[1750585058578,18.89134023,2263.8,2263.7,4.41740244]
[1750585058779,26.94034023,2263.8,2263.7,4.41740244]
[1750585059415,18.89134023,2263.8,2263.5,4.41790662]
[1750585059588,26.93834023,2263.8,2263.7,4.41754649]
[1750585060231,26.93834023,2263.8,2263.1,4.41871768]
[1750585060404,30.39047425,2263.8,2263.1,4.41871768]
[1750585060594,27.69664023,2263.8,2263.5,4.41774731]
[1750585060916,27.69664023,2263.8,2263.7,4.41754649]
[1750585061086,26.93834023,2263.8,2263.7,4.41754649]
[1750585061286,18.047,2263.8,2263.7,4.41754649]
[1750585062121,26.93834023,2263.8,2263.0,0.8028]
[1750585062305,26.93834023,2263.8,2262.7,0.7926]
[1750585062306,8.89134023,2263.4,2262.7,0.7926]
[1750585062487,8.031,2263.3,2263.2,4.41841841]
[1750585062680,8.031,2263.3,2262.7,0.7926]
[1750585062885,8.031,2263.3,2262.1,4.42065596]
[1750585062886,8.89134023,2263.1,2262.3,0.7926]
[1750585063085,8.027,2263.0,2262.9,4.41910822]
[1750585063511,8.027,2263.0,2262.8,4.41924188]
[1750585063705,8.027,2263.0,2262.9,4.41910822]
[1750585063981,8.027,2263.0,2262.3,1.3139256]
[1750585064194,18.89134023,2262.8,2262.3,0.7926]
[1750585064528,8.89134023,2262.5,2261.9,0.7926]
[1750585064686,8.89134023,2262.0,2261.5,0.7926]
[1750585064889,10.0,2262.2,2261.2,5.21490836]
[1750585064890,8.89134023,2261.7,2261.2,5.21490836]
[1750585065091,8.89134023,2261.7,2261.5,4.4218439]
[1750585065092,8.031,2261.6,2261.5,4.4218439]
[1750585065318,8.031,2261.6,2261.4,4.42196654]
[1750585065637,10.0,2261.6,2261.5,4.4218439]
[1750585065840,18.029,2261.6,2261.5,4.4218439]
[1750585066002,18.029,2261.6,2261.5,4.79097173]
[1750585067617,18.029,2261.6,2260.8,5.21573512]
[1750585067816,18.029,2261.6,2261.2,4.4222531]
[1750585067817,8.89134023,2261.3,2261.2,4.4222531]
[1750585068007,10.0,2261.2,2260.9,4.42301738]
[1750585068213,10.0,2261.2,2261.1,4.42262615]
[1750585068463,18.017,2261.2,2261.1,4.42262615]
[1750585068862,18.017,2261.2,2260.9,4.42290154]
[1750585069031,8.89134023,2261.1,2261.0,4.42281583]
[1750585069342,8.89134023,2261.1,2261.0,4.42282176]
[1750585069743,8.89134023,2261.1,2260.5,0.8217]
[1750585069744,18.89134023,2261.1,2260.5,0.8217]
[1750585069965,18.89134023,2261.1,2259.7,4.42517466]
[1750585069966,18.014,2261.0,2260.8,4.42320382]
[1750585070134,18.014,2261.0,2260.9,4.42301738]
[1750585070535,18.014,2261.0,2260.7,4.42321351]
[1750585070745,18.014,2261.0,2260.3,4.4240617]
[1750585070746,10.0,2260.7,2260.3,4.4240617]
[1750585070952,10.0,2260.7,2259.6,4.42555866]
[1750585070953,8.89134023,2260.5,2259.7,0.8217]
[1750585071114,11.1982,2260.6,2260.1,4.42439016]
[1750585071115,8.89134023,2260.2,2260.1,4.42439016]
[1750585071314,8.89134023,2260.2,2259.7,5.24704038]
[1750585071315,26.89834023,2260.2,2260.0,4.42464417]
[1750585071651,0.8172,2260.0,2258.9,0.8217]
[1750585071816,8.89134023,2259.8,2259.7,4.42535425]
[1750585072364,10.0,2259.7,2259.3,4.42596921]
[1750585072526,8.89134023,2259.4,2259.3,4.42614969]
[1750585072865,16.89534023,2259.4,2259.3,4.42614969]
[1750585073157,8.89134023,2259.8,2259.6,4.42556204]
[1750585073361,18.003,2259.7,2259.5,4.42567294]
[1750585073548,18.003,2259.7,2258.9,0.8217]
[1750585073549,8.89134023,2259.6,2258.9,0.8217]
[1750585073747,8.89134023,2259.4,2259.3,4.42612164]
[1750585073959,10.0,2259.3,2258.5,0.8127]
[1750585074257,10.0,2259.1,2259.0,4.42673749]
[1750585074455,8.89134023,2259.0,2258.7,4.42721739]
[1750585074656,8.004,2258.9,2258.7,4.42732545]
[1750585074825,8.004,2258.9,2258.8,4.42712944]
[1750585075222,18.004,2258.9,2258.6,4.42733959]
[1750585075564,18.004,2258.9,2258.5,0.36961815]
[1750585075565,8.89134023,2258.7,2258.5,0.36961815]
[1750585075859,18.0,2258.6,2258.5,0.36961815]
[1750585076028,18.0,2258.6,2258.5,4.79733566]
[1750585077038,18.0,2258.6,2258.5,4.42771751]
[1750585077225,7.99,2258.8,2258.7,4.42732545]
[1750585077758,7.99,2258.8,2258.0,4.42869796]
[1750585077759,10.0,2258.7,2258.0,4.42869796]
[1750585077961,29.22134023,2258.8,2258.5,4.42771751]
[1750585077962,17.996,2258.6,2258.5,4.42771751]
[1750585080158,10.0,2258.6,2258.5,4.42771751]
[1750585080460,17.998,2258.6,2258.5,4.42771751]
[1750585081785,13.26729425,2259.8,2258.6,0.55]
[1750585082064,0.23143242,2259.4,2258.5,11.65586295]
[1750585082362,7.993,2259.3,2259.2,4.42623448]
[1750585082746,8.22441059,2259.3,2259.2,4.42623448]
[1750585084570,8.22441059,2259.3,2259.1,4.42652198]
[1750585084571,10.787,2259.2,2258.3,4.42810963]
[1750585084741,8.89134023,2258.5,2258.4,4.42777098]
[1750585084927,8.89134023,2258.5,2258.3,4.42802609]
[1750585084928,16.87634023,2258.5,2258.3,4.42802609]
[1750585085126,16.87634023,2258.5,2258.4,4.42791356]
[1750585085546,16.87634023,2258.5,2257.9,0.7724]
[1750585085547,16.87634023,2258.5,2258.3,4.42806221]
[1750585085833,16.87634023,2258.5,2258.4,4.42791356]
[1750585087183,28.25368645,2258.5,2258.0,4.42869796]
[1750585087481,28.25368645,2258.5,2258.2,4.42821346]
[1750585087671,28.25368645,2258.5,2257.7,4.42927257]
[1750585087968,28.25368645,2258.5,2258.2,4.42830204]
[1750585088140,26.87634023,2258.5,2258.2,4.42830204]
[1750585088343,26.87634023,2258.5,2257.6,4.42948263]
[1750585088541,26.87634023,2258.5,2258.2,4.42819964]
[1750585088861,0.7663,2258.4,2258.0,4.42852827]
[1750585089036,10.0,2258.2,2258.1,4.42850183]
[1750585089239,10.0,2258.2,2258.0,4.42852827]
[1750585089240,10.0,2258.2,2258.0,4.42860004]
[1750585089443,10.0,2258.2,2257.9,4.42883017]
[1750585089444,7.958,2258.1,2257.9,4.42875512]
[1750585089848,7.958,2258.1,2257.9,4.42882235]
[1750585090252,7.958,2258.1,2258.0,4.42869796]
[1750585090567,7.958,2258.1,2257.9,4.42879255]
[1750585091141,7.958,2258.1,2258.0,4.42869796]
[1750585091363,7.958,2258.1,2257.9,4.4287916]
[1750585091568,0.7663,2257.9,2256.9,4.43074675]
[1750585091765,0.7663,2257.9,2256.8,0.7762]
[1750585091766,10.0,2257.5,2256.8,0.7762]
[1750585091969,15.19637495,2257.3,2256.2,0.7762]
[1750585092276,10.0,2257.1,2256.6,4.43129595]
[1750585092449,7.949,2257.0,2256.7,4.43113879]
[1750585092655,7.949,2257.0,2256.6,4.43134162]
[1750585092850,10.0,2256.9,2256.2,0.7762]
[1750585093163,7.947,2256.8,2256.6,4.43144045]
[1750585093698,7.947,2256.8,2256.5,4.43157275]
[1750585094242,7.947,2256.8,2256.6,4.43136253]
[1750585094857,17.947,2256.8,2256.7,4.43124916]
[1750585096301,17.946,2257.0,2256.9,4.43085648]
[1750585096472,17.946,2257.0,2256.6,4.4312496]
[1750585096788,17.946,2257.0,2256.7,4.43115111]
[1750585097158,17.946,2257.0,2256.9,4.43085648]
[1750585097364,17.946,2257.0,2256.8,4.43096734]
[1750585097575,17.946,2257.0,2256.7,4.43116191]
[1750585097771,17.946,2257.0,2256.8,4.43086234]
[1750585098048,0.23162321,2256.9,2256.8,4.43105281]
[1750585098543,0.23162321,2256.9,2256.7,4.43116151]
[1750585098755,7.948,2256.8,2256.7,4.43116151]
[1750585100158,7.948,2256.8,2256.3,4.43203474]
[1750585100159,17.948,2256.8,2256.3,4.43203474]
[1750585100366,17.948,2256.8,2255.9,4.4328206]
[1750585100367,7.948,2256.8,2255.9,4.4328206]
[1750585100565,7.948,2256.8,2255.7,0.7509]
[1750585100566,0.7685,2256.7,2255.7,0.7509]
[1750585100874,0.7685,2256.2,2255.6,0.2230228]
[1750585101062,10.292,2256.1,2256.0,4.43262411]
[1750585101762,0.23162321,2256.9,2256.8,4.43105281]
[1750585101969,8.18062321,2256.9,2256.3,4.43184069]
[1750585102314,8.89134023,2256.4,2256.0,4.43251]
[1750585102458,10.292,2256.3,2256.0,4.43251]
[1750585102806,10.292,2256.3,2256.2,4.43223118]
[1750585103167,10.292,2256.3,2256.1,4.43233799]
[1750585103800,20.292,2256.3,2256.2,4.43223118]
[1750585103998,23.13023633,2256.3,2255.9,4.43269936]
[1750585104503,10.0,2256.2,2256.0,4.43261383]
[1750585104685,7.95,2256.1,2256.0,4.43261383]
[1750585104889,10.0,2256.2,2255.7,4.43321363]
[1750585105085,7.95,2256.1,2256.0,4.43262411]